fUSD/lending_fUSD_20240125
["ID","MTS","AMOUNT","RATE_DAILY","PERIOD"]
[312722860,1706189031629,-500.0,0.00052602,120]
[312722861,1706189031663,-300.0,0.00052739,120]
[312722862,1706189031695,-155.0,0.00052782,60]
[312722863,1706189031726,-155.34742293,0.00052784,50]
[312722864,1706189031766,-4432.20717648,0.00052884,120]
[312722865,1706189031798,-2983020.05570883,0.00052884,60]
[312722866,1706189037188,-750.0,0.00048,120]
[312722867,1706189037499,-1000000.0,0.000525,120]
[312722868,1706189037533,-159.0,0.000526,120]
[312722869,1706189037582,-337944.0386488,0.00052884,60]
[312722870,1706189037614,-3245.95983651,0.00052892,60]
[312722871,1706189037644,-55724.93316546,0.00052892,60]
[312722872,1706189037677,-66518.86610483,0.000529,40]
[312722873,1706189037710,-3245.95983651,0.00052901,60]
[312722874,1706189037741,-500.0,0.00052904,120]
[312722875,1706189037771,-266617.74765607,0.00052919,60]
[312722876,1706189037802,-266617.74765607,0.00052935,60]
[312722877,1706189037834,-55724.93316546,0.00052938,60]
[312722878,1706189037866,-407.76463174,0.00052986,120]
[312722879,1706189037898,-200.0,0.00052987,54]
[312722880,1706189037930,-200.0,0.00052987,42]
[312722881,1706189037962,-200.0,0.00052987,68]
[312722882,1706189037998,-200.0,0.00052987,80]
[312722883,1706189038030,-1000.0,0.00052999,120]
[312722884,1706189038065,-267.95430054,0.00052999,45]
[312722885,1706189038099,-2287.82964954,0.00052999,45]
[312722886,1706189038135,-510.02997981,0.00052999,45]
[312722887,1706189038169,-2942.78378728,0.00052999,45]
[312722888,1706189038205,-433.27129236,0.00052999,45]
[312722889,1706189038240,-100000.0,0.00053,43]
[312722890,1706189038272,-834301.18028902,0.00053,120]
[312722891,1706189042543,-840.85262393,0.00042,120]
[312722892,1706189042693,-165698.81971098,0.00053,120]
[312722893,1706189042731,-300.0,0.00053,35]
[312722894,1706189042765,-11202.0,0.00053,120]
[312722895,1706189042804,-300.0,0.00053,54]
[312722896,1706189042840,-2000.0,0.00053,120]
[312722897,1706189042873,-299.0,0.00053,120]
[312722898,1706189042909,-1000000.0,0.00053,120]
[312722899,1706189042945,-1000.0,0.00053,120]
[312722900,1706189042979,-250.0,0.00053,120]
[312722901,1706189043015,-2000.0,0.00053,60]
[312722902,1706189043049,-4416.17462995,0.00053,120]
[312722903,1706189043084,-1000.0,0.00053,120]
[312722904,1706189043119,-1000000.0,0.00053,120]
[312722905,1706189043152,-281722.15865356,0.00053,120]
[312722906,1706189043336,-5000.0,0.00053,120]
[312722907,1706189043372,-200.0,0.00053014,120]
[312722908,1706189043409,-500.0,0.00053082,120]
[312722909,1706189043442,-1980.9801,0.00053096,120]
[312722910,1706189043476,-200.0,0.00053123,120]
[312722911,1706189043521,-500.0,0.00053205,120]
[312722912,1706189043557,-5000.0,0.0005325,120]
[312722913,1706189043592,-174.22,0.00053421,90]
[312722914,1706189043628,-2000.0,0.00053424,120]
[312722915,1706189043669,-450.0,0.00053424,120]
[312722916,1706189043704,-500.0,0.00053425,120]
[312722917,1706189043736,-1000.0,0.00053499,120]
[312722918,1706189043767,-511465.79428158,0.000535,120]
[312722919,1706189045931,-201.0,0.00047513,34]
[312722920,1706189046014,-201.0,0.00050635,40]
[312722921,1706189046081,-1000000.0,0.00052,120]
[312722922,1706189046177,-488534.20571842,0.000535,120]
[312722923,1706189046213,-1000.0,0.000535,120]
[312722924,1706189046247,-4736.44,0.000535,120]
[312722925,1706189046281,-500.0,0.00053506,120]
[312722926,1706189046316,-2000.0,0.00053612,120]
[312722927,1706189046347,-161.72775691,0.00053612,120]
[312722928,1706189046386,-153.0,0.000537,120]
[312722929,1706189046418,-159.0,0.000537,120]
[312722930,1706189046451,-500.0,0.00053767,120]
[312722931,1706189046484,-500.0,0.00053808,120]
[312722932,1706189046518,-4999.999999,0.0005388,120]
[312722933,1706189046549,-528.68624427,0.000539,110]
[312722934,1706189046586,-200.0,0.00053987,43]
[312722935,1706189046620,-200.0,0.00053987,56]
[312722936,1706189046653,-200.0,0.00053987,69]
[312722937,1706189046685,-200.0,0.00053987,90]
[312722938,1706189046718,-159.41366122,0.00053995,120]
[312722939,1706189046752,-1000.0,0.00053999,120]
[312722940,1706189046789,-100000.0,0.00054,44]
[312722941,1706189046823,-1010.0,0.00054,120]
[312722942,1706189046858,-1000000.0,0.00054,120]
[312722943,1706189046892,-392855.52662018,0.00054,120]
[312722944,1706189061283,-399.64241906,0.00042,120]
[312722945,1706189061400,-150.0,0.00051,120]
[312722946,1706189061471,-150.0,0.000515,120]
[312722947,1706189061540,-150.0,0.00052,120]
[312722948,1706189061596,-150.0,0.000525,120]
[312722949,1706189061652,-150.0,0.00053,120]
[312722950,1706189061703,-150.0,0.000535,120]
[312722951,1706189061742,-201.0,0.00053756,47]
[312722952,1706189061781,-607144.47337982,0.00054,120]
[312722953,1706189061812,-1000000.0,0.00054,120]
[312722954,1706189061844,-1000000.0,0.00054,120]
[312722955,1706189061879,-300.0,0.00054,55]
[312722956,1706189061911,-250.0,0.00054,120]
[312722957,1706189061944,-19740.13564887,0.00054,90]
[312722958,1706189061978,-750.0,0.00054,120]
[312722959,1706189062010,-150.0,0.00054,120]
[312722960,1706189062043,-200.0,0.00054027,120]
[312722961,1706189062076,-500.0,0.00054109,120]
[312722962,1706189062110,-600.0,0.00054109,120]
[312722963,1706189062146,-500.0,0.0005411,120]
[312722964,1706189062188,-200.0,0.00054247,120]
[312722965,1706189062222,-563.95880177,0.0005441,120]
[312722966,1706189062255,-500.0,0.00054452,120]
[312722967,1706189062287,-1000.0,0.000545,120]
[312722968,1706189062320,-366100.78975048,0.000545,120]
[312722969,1706189075724,-1500.0,0.00052328,60]
[312722970,1706189075789,-900378.89,0.00053,120]
[312722971,1706189075863,-633899.21024952,0.000545,120]
[312722972,1706189075901,-1000000.0,0.000545,120]
[312722973,1706189075936,-464221.89975048,0.000545,120]
[312722974,1706189079086,-535778.10024952,0.000545,120]
[312722975,1706189079121,-50000.00000038,0.000545,45]
[312722976,1706189079155,-150.0,0.000545,120]
[312722977,1706189079189,-1058.092,0.000545,120]
[312722978,1706189079225,-632.99,0.0005452,120]
[312722979,1706189079260,-1224.41,0.0005452,120]
[312722980,1706189079294,-500.0,0.0005452,120]
[312722981,1706189079327,-528.11,0.0005452,120]
[312722982,1706189079362,-500.0,0.0005452,120]
[312722983,1706189079396,-500.0,0.0005452,120]
[312722984,1706189079433,-463.13442161,0.0005452,120]
[312722985,1706189079466,-549.93,0.0005452,120]
[312722986,1706189079499,-684.55,0.0005452,120]
[312722987,1706189079531,-500.0,0.0005452,120]
[312722988,1706189079563,-591.91,0.0005452,120]
[312722989,1706189079595,-500.0,0.0005452,120]
[312722990,1706189079626,-503.96,0.0005452,120]
[312722991,1706189079657,-740.01,0.0005452,120]
[312722992,1706189079689,-500.0,0.0005452,120]
[312722993,1706189079721,-818.92,0.0005452,120]
[312722994,1706189079753,-919.78,0.0005452,120]
[312722995,1706189079784,-791.89,0.0005452,120]
[312722996,1706189079816,-558.35,0.0005452,120]
[312722997,1706189079848,-500.0,0.0005452,120]
[312722998,1706189079879,-504.11,0.0005452,120]
[312722999,1706189079912,-518.45,0.0005452,120]
[312723000,1706189079943,-500.0,0.0005452,120]
[312723001,1706189079975,-502.47,0.0005452,120]
[312723002,1706189080007,-511.82,0.0005452,120]
[312723003,1706189080041,-500.0,0.0005452,120]
[312723004,1706189080075,-1043.27,0.0005452,120]
[312723005,1706189080110,-626.01,0.0005452,120]
[312723006,1706189080146,-500.0,0.0005452,120]
[312723007,1706189080181,-520.27,0.0005452,120]
[312723008,1706189080216,-500.0,0.0005452,120]
[312723009,1706189080249,-1172.34,0.0005452,120]
[312723010,1706189080283,-578.99,0.0005452,120]
[312723011,1706189080315,-732.03,0.0005452,120]
[312723012,1706189080348,-662.95,0.0005452,120]
[312723013,1706189080381,-650.93,0.0005452,120]
[312723014,1706189080414,-500.0,0.0005452,120]
[312723015,1706189080446,-500.0,0.0005452,120]
[312723016,1706189080479,-654.66,0.0005452,120]
[312723017,1706189080661,-594.71261194,0.0005452,120]
[312723018,1706189080698,-500.0,0.0005452,120]
[312723019,1706189080734,-510.0,0.0005452,120]
[312723020,1706189080769,-914.68,0.0005452,120]
[312723021,1706189080805,-1219.85,0.0005452,120]
[312723022,1706189080843,-741.46,0.0005452,120]
[312723023,1706189080878,-1372.24,0.0005452,120]
[312723024,1706189080912,-742.25,0.0005452,120]
[312723025,1706189080948,-500.0,0.0005452,120]
[312723026,1706189080984,-4847.59,0.0005452,120]
[312723027,1706189081022,-4861.43,0.0005452,120]
[312723028,1706189081057,-1144.24,0.0005452,120]
[312723029,1706189081091,-568.09,0.0005452,120]
[312723030,1706189081127,-793.58,0.0005452,120]
[312723031,1706189081164,-557.9,0.0005452,120]
[312723032,1706189081201,-3266.16,0.0005452,120]
[312723033,1706189081239,-2306.89,0.0005452,120]
[312723034,1706189081275,-798.73,0.0005452,120]
[312723035,1706189081314,-500.0,0.0005452,120]
[312723036,1706189081353,-659.44,0.0005452,120]
[312723037,1706189081392,-500.0,0.0005452,120]
[312723038,1706189081430,-806.49,0.0005452,120]
[312723039,1706189081467,-534.89,0.0005452,120]
[312723040,1706189081503,-500.0,0.0005452,120]
[312723041,1706189081540,-563.64,0.0005452,120]
[312723042,1706189081575,-624.88,0.0005452,120]
[312723043,1706189081609,-658.39,0.0005452,120]
[312723044,1706189081642,-2660.25,0.0005452,120]
[312723045,1706189081675,-1771.9,0.0005452,120]
[312723046,1706189081707,-522.59,0.0005452,120]
[312723047,1706189081742,-542.57,0.0005452,120]
[312723048,1706189081777,-500.0,0.0005452,120]
[312723049,1706189081812,-500.0,0.0005452,120]
[312723050,1706189081846,-597.87,0.0005452,120]
[312723051,1706189081880,-886.76,0.0005452,120]
[312723052,1706189081914,-4161.44,0.0005452,120]
[312723053,1706189081948,-631.14,0.0005452,120]
[312723054,1706189081984,-706.68,0.0005452,120]
[312723055,1706189082126,-500.0,0.0005452,120]
[312723056,1706189082168,-673.32,0.0005452,120]
[312723057,1706189082209,-511.95,0.0005452,120]
[312723058,1706189082249,-707.38,0.0005452,120]
[312723059,1706189082287,-500.0,0.0005452,120]
[312723060,1706189082324,-1269.77,0.0005452,120]
[312723061,1706189082361,-2392.7,0.0005452,120]
[312723062,1706189082395,-267.45322931,0.0005456,120]
[312723063,1706189082429,-153.0,0.000547,120]
[312723064,1706189082463,-500.0,0.00054794,120]
[312723065,1706189082501,-507.42209445,0.00054794,120]
[312723066,1706189082538,-500.0,0.00054794,120]
[312723067,1706189082576,-1617.21694964,0.00054794,120]
[312723068,1706189082614,-632.99,0.00054794,120]
[312723069,1706189082648,-1224.41,0.00054794,120]
[312723070,1706189082681,-500.0,0.00054794,120]
[312723071,1706189082714,-500.0,0.00054794,120]
[312723072,1706189082748,-500.0,0.00054794,120]
[312723073,1706189082781,-500.0,0.00054794,120]
[312723074,1706189082814,-500.0,0.00054794,120]
[312723075,1706189082847,-500.0,0.00054794,120]
[312723076,1706189082880,-500.0,0.00054794,120]
[312723077,1706189082911,-500.0,0.00054794,120]
[312723078,1706189082944,-523.27332846,0.00054794,120]
[312723079,1706189082976,-540.72807404,0.00054794,120]
[312723080,1706189083009,-528.11,0.00054794,120]
[312723081,1706189083042,-415.98972132,0.00054794,120]
[312723082,1706189083074,-500.0,0.00054794,120]
[312723083,1706189083107,-1846.3646639,0.00054794,120]
[312723084,1706189083141,-549.93,0.00054794,120]
[312723085,1706189083177,-684.55,0.00054794,120]
[312723086,1706189083210,-500.0,0.00054794,120]
[312723087,1706189083243,-591.91,0.00054794,120]
[312723088,1706189083276,-500.0,0.00054794,120]
[312723089,1706189083308,-503.96,0.00054794,120]
[312723090,1706189083339,-740.01,0.00054794,120]
[312723091,1706189083371,-155.36203164,0.00054794,120]
[312723092,1706189083407,-818.92,0.00054794,120]
[312723093,1706189083440,-919.78,0.00054794,120]
[312723094,1706189083631,-791.89,0.00054794,120]
[312723095,1706189083665,-558.35,0.00054794,120]
[312723096,1706189083697,-500.0,0.00054794,120]
[312723097,1706189083729,-504.11,0.00054794,120]
[312723098,1706189083766,-518.45,0.00054794,120]
[312723099,1706189083799,-387.02835768,0.00054794,120]
[312723100,1706189083832,-502.47,0.00054794,120]
[312723101,1706189083864,-511.82,0.00054794,120]
[312723102,1706189083897,-500.0,0.00054794,120]
[312723103,1706189083931,-1043.27,0.00054794,120]
[312723104,1706189083965,-626.01,0.00054794,120]
[312723105,1706189083998,-606.80078839,0.00054794,120]
[312723106,1706189084032,-520.27,0.00054794,120]
[312723107,1706189084065,-500.0,0.00054794,120]
[312723108,1706189084099,-1172.34,0.00054794,120]
[312723109,1706189084135,-578.99,0.00054794,120]
[312723110,1706189084172,-732.03,0.00054794,120]
[312723111,1706189084208,-662.95,0.00054794,120]
[312723112,1706189084242,-650.93,0.00054794,120]
[312723113,1706189084276,-500.0,0.00054794,120]
[312723114,1706189084310,-500.0,0.00054794,120]
[312723115,1706189084343,-654.66,0.00054794,120]
[312723116,1706189084377,-247.94536796,0.00054794,120]
[312723117,1706189084411,-914.68,0.00054794,120]
[312723118,1706189084444,-1219.85,0.00054794,120]
[312723119,1706189084477,-741.46,0.00054794,120]
[312723120,1706189084510,-1372.24,0.00054794,120]
[312723121,1706189084547,-616.55160079,0.00054794,120]
[312723122,1706189084581,-742.25,0.00054794,120]
[312723123,1706189084619,-4847.59,0.00054794,120]
[312723124,1706189084654,-4861.43,0.00054794,120]
[312723125,1706189084687,-1144.24,0.00054794,120]
[312723126,1706189084719,-568.09,0.00054794,120]
[312723127,1706189084752,-793.58,0.00054794,120]
[312723128,1706189084784,-1162.13,0.00054794,120]
[312723129,1706189084817,-1162.13,0.00054794,120]
[312723130,1706189084850,-557.9,0.00054794,120]
[312723131,1706189084885,-1162.13,0.00054794,120]
[312723132,1706189084920,-1162.13,0.00054794,120]
[312723133,1706189084954,-1162.13,0.00054794,120]
[312723134,1706189084988,-1162.13,0.00054794,120]
[312723135,1706189085022,-1162.13,0.00054794,120]
[312723136,1706189085056,-1162.13,0.00054794,120]
[312723137,1706189085089,-1162.13,0.00054794,120]
[312723138,1706189085126,-1162.13,0.00054794,120]
[312723139,1706189085161,-1162.13,0.00054794,120]
[312723140,1706189085195,-1162.13,0.00054794,120]
[312723141,1706189085228,-3266.16,0.00054794,120]
[312723142,1706189085260,-1162.13,0.00054794,120]
[312723143,1706189085294,-2306.89,0.00054794,120]
[312723144,1706189085328,-1162.13,0.00054794,120]
[312723145,1706189085360,-1162.13,0.00054794,120]
[312723146,1706189085394,-1162.13,0.00054794,120]
[312723147,1706189085427,-1162.13,0.00054794,120]
[312723148,1706189085462,-1162.13,0.00054794,120]
[312723149,1706189085499,-1162.13,0.00054794,120]
[312723150,1706189085535,-798.73,0.00054794,120]
[312723151,1706189085569,-1162.13,0.00054794,120]
[312723152,1706189085602,-1162.13,0.00054794,120]
[312723153,1706189085634,-331.5072156,0.00054794,120]
[312723154,1706189085680,-659.44,0.00054794,120]
[312723155,1706189085715,-251.49,0.00054794,120]
[312723156,1706189085750,-806.49,0.00054794,120]
[312723157,1706189085782,-534.89,0.00054794,120]
[312723158,1706189085816,-247.62955918,0.00054794,120]
[312723159,1706189085849,-563.64,0.00054794,120]
[312723160,1706189085882,-624.88,0.00054794,120]
[312723161,1706189085915,-658.39,0.00054794,120]
[312723162,1706189085947,-714.80872024,0.00054794,120]
[312723163,1706189085981,-2660.25,0.00054794,120]
[312723164,1706189086016,-1771.9,0.00054794,120]
[312723165,1706189086052,-542.57,0.00054794,120]
[312723166,1706189086086,-522.59,0.00054794,120]
[312723167,1706189086119,-500.0,0.00054794,120]
[312723168,1706189086331,-566.98410948,0.00054794,120]
[312723169,1706189086372,-597.87,0.00054794,120]
[312723170,1706189086408,-886.76,0.00054794,120]
[312723171,1706189086445,-4161.44,0.00054794,120]
[312723172,1706189086480,-631.14,0.00054794,120]
[312723173,1706189086516,-706.68,0.00054794,120]
[312723174,1706189086551,-500.0,0.00054794,120]
[312723175,1706189086586,-673.32,0.00054794,120]
[312723176,1706189086621,-511.95,0.00054794,120]
[312723177,1706189086654,-707.38,0.00054794,120]
[312723178,1706189086687,-500.0,0.00054794,120]
[312723179,1706189086721,-1269.77,0.00054794,120]
[312723180,1706189086754,-2392.7,0.00054794,120]
[312723181,1706189086788,-500.0,0.00054795,120]
[312723182,1706189086820,-4038.80885546,0.000548,120]
[312723183,1706189086852,-247590.0,0.000548,120]
[312723184,1706189086885,-2000.0,0.000548,120]
[312723185,1706189086917,-2782.0,0.000548,120]
[312723186,1706189086950,-8000.0,0.000548,120]
[312723187,1706189086982,-159.0,0.000548,120]
[312723188,1706189087015,-300.0,0.00054808,120]
[312723189,1706189087048,-390.0,0.00054808,120]
[312723190,1706189087083,-507.0,0.00054808,120]
[312723191,1706189087116,-659.0,0.00054808,120]
[312723192,1706189087152,-856.0,0.00054808,120]
[312723193,1706189087187,-1113.0,0.00054808,120]
[312723194,1706189087226,-1448.0,0.00054808,120]
[312723195,1706189087262,-1882.0,0.00054808,120]
[312723196,1706189087297,-2447.0,0.00054808,120]
[312723197,1706189087332,-3181.0,0.00054808,120]
[312723198,1706189087367,-2224.0,0.00054808,120]
[312723199,1706189087401,-150.0,0.00054822,120]
[312723200,1706189087434,-684.0,0.000549,60]
[312723201,1706189087472,-7571.58799318,0.000549,120]
[312723202,1706189087508,-200.0,0.00054987,80]
[312723203,1706189087546,-200.0,0.00054987,84]
[312723204,1706189087578,-200.0,0.00054987,58]
[312723205,1706189087631,-200.0,0.00054987,63]
[312723206,1706189087688,-200.0,0.00054987,44]
[312723207,1706189087743,-200.0,0.00054987,58]
[312723208,1706189087796,-200.0,0.00054987,72]
[312723209,1706189087854,-200.0,0.00054987,95]
[312723210,1706189087905,-1000.0,0.00054999,120]
[312723211,1706189087953,-100000.0,0.00055,45]
[312723212,1706189088004,-200.0,0.00055,55]
[312723213,1706189088056,-269.6264905,0.00055,120]
[312723214,1706189088107,-300.0,0.00055,56]
[312723215,1706189088155,-2000.0,0.00055,120]
[312723216,1706189088207,-300.77154072,0.00055,120]
[312723217,1706189088256,-500.0,0.00055,120]
[312723218,1706189088305,-756.86960964,0.00055,120]
[312723219,1706189088357,-190.2300641,0.00055,120]
[312723220,1706189088390,-681.466388,0.00055,120]
[312723221,1706189088423,-667.0,0.00055,120]
[312723222,1706189088454,-3118.05397353,0.00055,120]
[312723223,1706189088488,-1000000.0,0.00055,120]
[312723224,1706189088521,-192.0,0.00055,120]
[312723225,1706189088552,-2000.0,0.00055,120]
[312723226,1706189088585,-319.62577924,0.00055,60]
[312723227,1706189088618,-200.0,0.00055,120]
[312723228,1706189088652,-20000.0,0.00055,120]
[312723229,1706189088692,-509.74179071,0.00055,120]
[312723230,1706189088733,-164.0,0.00055,120]
[312723231,1706189088773,-117215.86731907,0.00055,120]
[312723232,1706189088812,-688391.52510032,0.00055,120]
[312723233,1706189093513,-1824.647274,0.000523,35]
[312723234,1706189093758,-200.37192497,0.0005452,120]
[312723235,1706189093791,-500.0,0.0005452,120]
[312723236,1706189093825,-500.0,0.00054794,120]
[312723237,1706189093858,-311608.47489968,0.00055,120]
[312723238,1706189093890,-1000000.0,0.00055,120]
[312723239,1706189093925,-244.08593135,0.00055,120]
[312723240,1706189093957,-300.0,0.00055,34]
[312723241,1706189093987,-2000.0,0.00055,120]
[312723242,1706189094018,-613.98747154,0.00055,120]
[312723243,1706189094049,-167.0,0.00055,120]
[312723244,1706189094084,-151.0,0.00055,120]
[312723245,1706189094115,-151.0,0.00055,120]
[312723246,1706189094148,-200.0,0.00055041,120]
[312723247,1706189094180,-407.37994777,0.00055068,120]
[312723248,1706189094213,-503.8920427,0.00055068,120]
[312723249,1706189094247,-632.99,0.00055068,120]
[312723250,1706189094279,-1224.41,0.00055068,120]
[312723251,1706189094311,-528.11,0.00055068,120]
[312723252,1706189094343,-500.0,0.00055068,120]
[312723253,1706189094374,-549.93,0.00055068,120]
[312723254,1706189094405,-684.55,0.00055068,120]
[312723255,1706189094437,-343.81029055,0.00055068,120]
[312723256,1706189094467,-591.91,0.00055068,120]
[312723257,1706189094499,-500.0,0.00055068,120]
[312723258,1706189094535,-503.96,0.00055068,120]
[312723259,1706189094567,-740.01,0.00055068,120]
[312723260,1706189094600,-504.11,0.00055068,120]
[312723261,1706189094631,-502.47,0.00055068,120]
[312723262,1706189094663,-511.82,0.00055068,120]
[312723263,1706189094694,-500.0,0.00055068,120]
[312723264,1706189094727,-626.01,0.00055068,120]
[312723265,1706189094758,-520.27,0.00055068,120]
[312723266,1706189094790,-500.0,0.00055068,120]
[312723267,1706189094822,-1172.34,0.00055068,120]
[312723268,1706189094853,-578.99,0.00055068,120]
[312723269,1706189094885,-732.03,0.00055068,120]
[312723270,1706189094916,-662.95,0.00055068,120]
[312723271,1706189094946,-650.93,0.00055068,120]
[312723272,1706189094977,-266.2,0.00055068,120]
[312723273,1706189095009,-550.2,0.00055068,120]
[312723274,1706189095041,-654.66,0.00055068,120]
[312723275,1706189095072,-914.68,0.00055068,120]
[312723276,1706189095103,-741.46,0.00055068,120]
[312723277,1706189095134,-742.25,0.00055068,120]
[312723278,1706189095166,-4861.43,0.00055068,120]
[312723279,1706189095198,-1144.24,0.00055068,120]
[312723280,1706189095230,-568.09,0.00055068,120]
[312723281,1706189095261,-557.9,0.00055068,120]
[312723282,1706189095292,-3266.16,0.00055068,120]
[312723283,1706189095323,-2306.89,0.00055068,120]
[312723284,1706189095353,-1162.13,0.00055068,120]
[312723285,1706189095384,-806.49,0.00055068,120]
[312723286,1706189095417,-534.89,0.00055068,120]
[312723287,1706189095448,-563.64,0.00055068,120]
[312723288,1706189095480,-624.88,0.00055068,120]
[312723289,1706189095511,-658.39,0.00055068,120]
[312723290,1706189095547,-2660.25,0.00055068,120]
[312723291,1706189095578,-1771.9,0.00055068,120]
[312723292,1706189095609,-542.57,0.00055068,120]
[312723293,1706189095641,-522.59,0.00055068,120]
[312723294,1706189095673,-208.32579387,0.00055068,120]
[312723295,1706189095709,-597.87,0.00055068,120]
[312723296,1706189095741,-886.76,0.00055068,120]
[312723297,1706189095772,-4161.44,0.00055068,120]
[312723298,1706189095805,-631.14,0.00055068,120]
[312723299,1706189095837,-706.68,0.00055068,120]
[312723300,1706189095869,-500.0,0.00055068,120]
[312723301,1706189095900,-673.32,0.00055068,120]
[312723302,1706189095934,-511.95,0.00055068,120]
[312723303,1706189095966,-707.38,0.00055068,120]
[312723304,1706189095999,-500.0,0.00055068,120]
[312723305,1706189096032,-2392.7,0.00055068,120]
[312723306,1706189096064,-1269.77,0.00055068,120]
[312723307,1706189096096,-500.0,0.00055068,120]
[312723308,1706189096131,-500.0,0.00055137,120]
[312723309,1706189096169,-632.99,0.00055342,120]
[312723310,1706189096207,-1224.41,0.00055342,120]
[312723311,1706189096245,-528.11,0.00055342,120]
[312723312,1706189096283,-635.80494036,0.00055342,120]
[312723313,1706189096319,-549.93,0.00055342,120]
[312723314,1706189096355,-684.55,0.00055342,120]
[312723315,1706189096394,-591.91,0.00055342,120]
[312723316,1706189096433,-381.87272614,0.00055342,120]
[312723317,1706189096471,-503.96,0.00055342,120]
[312723318,1706189096509,-740.01,0.00055342,120]
[312723319,1706189096548,-504.11,0.00055342,120]
[312723320,1706189096584,-502.47,0.00055342,120]
[312723321,1706189096619,-511.82,0.00055342,120]
[312723322,1706189096652,-460.86603101,0.00055342,120]
[312723323,1706189096686,-626.01,0.00055342,120]
[312723324,1706189096717,-520.27,0.00055342,120]
[312723325,1706189096752,-500.0,0.00055342,120]
[312723326,1706189096786,-1172.34,0.00055342,120]
[312723327,1706189096824,-578.99,0.00055342,120]
[312723328,1706189096863,-732.03,0.00055342,120]
[312723329,1706189096900,-662.95,0.00055342,120]
[312723330,1706189096937,-650.93,0.00055342,120]
[312723331,1706189096971,-654.66,0.00055342,120]
[312723332,1706189097004,-914.68,0.00055342,120]
[312723333,1706189097037,-741.46,0.00055342,120]
[312723334,1706189097070,-742.25,0.00055342,120]
[312723335,1706189097246,-4861.43,0.00055342,120]
[312723336,1706189097284,-1144.24,0.00055342,120]
[312723337,1706189097323,-568.09,0.00055342,120]
[312723338,1706189097359,-557.9,0.00055342,120]
[312723339,1706189097394,-3266.16,0.00055342,120]
[312723340,1706189097430,-2306.89,0.00055342,120]
[312723341,1706189097465,-1162.13,0.00055342,120]
[312723342,1706189097499,-806.49,0.00055342,120]
[312723343,1706189097539,-534.89,0.00055342,120]
[312723344,1706189097576,-563.64,0.00055342,120]
[312723345,1706189097611,-624.88,0.00055342,120]
[312723346,1706189097643,-658.39,0.00055342,120]
[312723347,1706189097676,-2660.25,0.00055342,120]
[312723348,1706189097709,-1771.9,0.00055342,120]
[312723349,1706189097742,-542.57,0.00055342,120]
[312723350,1706189097775,-522.59,0.00055342,120]
[312723351,1706189097808,-597.87,0.00055342,120]
[312723352,1706189097842,-886.76,0.00055342,120]
[312723353,1706189097874,-4161.44,0.00055342,120]
[312723354,1706189097907,-631.14,0.00055342,120]
[312723355,1706189097942,-706.68,0.00055342,120]
[312723356,1706189097975,-280.33485422,0.00055342,120]
[312723357,1706189098007,-673.32,0.00055342,120]
[312723358,1706189098040,-511.95,0.00055342,120]
[312723359,1706189098072,-707.38,0.00055342,120]